[Event "Pervenstvo PFO 2023_Y19_Rapid"]
[Site "Samara region, Russia"]
[Date "2023.11.11"]
[Round "5.1"]
[White "Lydin, Vladislav"]
[Black "Tarasenko, Iaroslav"]
[Result "1/2-1/2"]
[TimeControl "10:5"]
[WhiteFideId "44195990"]
[BlackFideId "44196008"]
[WhiteElo "2005"]
[BlackElo "2080"]

1. Nf3 {[%clk 00:10:08]} {[%emt 00:00:02]} Nf6 {[%clk 00:10:10]} 2. g3 {[%clk
00:10:12]} {[%emt 00:00:02]} b6 {[%clk 00:10:06]} {[%emt 00:00:09]} 3. Bg2
{[%clk 00:10:15]} Bb7 {[%clk 00:10:10]} 4. O-O {[%clk 00:10:19]} {[%emt
00:00:03]} e6 {[%clk 00:10:15]} 5. d3 {[%clk 00:10:08]} {[%emt 00:00:16]} d5
{[%clk 00:10:18]} {[%emt 00:00:02]} 6. Nbd2 {[%clk 00:10:10]} {[%emt 00:00:03]}
Be7 {[%clk 00:10:20]} {[%emt 00:00:03]} 7. b3 {[%clk 00:10:14]} O-O {[%clk
00:10:21]} {[%emt 00:00:04]} 8. Bb2 {[%clk 00:10:18]} c5 {[%clk 00:10:23]}
{[%emt 00:00:02]} 9. e3 {[%clk 00:10:19]} {[%emt 00:00:05]} Nc6 {[%clk
00:10:27]} {[%emt 00:00:02]} 10. c4 {[%clk 00:10:18]} {[%emt 00:00:05]} Rc8
{[%clk 00:10:12]} {[%emt 00:00:20]} 11. Qe2 {[%clk 00:10:21]} {[%emt 00:00:03]}
Qd7 {[%clk 00:08:18]} {[%emt 00:01:58]} 12. Rfd1 {[%clk 00:10:07]} {[%emt
00:00:18]} Rfd8 {[%clk 00:08:08]} {[%emt 00:00:16]} 13. cxd5 {[%clk 00:10:01]}
{[%emt 00:00:11]} Nxd5 {[%clk 00:08:06]} {[%emt 00:00:06]} 14. a3 {[%clk
00:09:41]} {[%emt 00:00:25]} Bf6 {[%clk 00:07:37]} {[%emt 00:00:34]} 15. Nc4
{[%clk 00:09:31]} {[%emt 00:00:15]} Nc3 {[%clk 00:07:33]} {[%emt 00:00:10]} 16.
Bxc3 {[%clk 00:09:26]} {[%emt 00:00:09]} Bxc3 {[%clk 00:07:36]} {[%emt
00:00:02]} 17. Rac1 {[%clk 00:09:30]} Bf6 {[%clk 00:07:40]} {[%emt 00:00:03]}
18. h4 {[%clk 00:07:18]} {[%emt 00:02:17]} b5 {[%clk 00:06:38]} {[%emt
00:01:06]} 19. Ncd2 {[%clk 00:06:40]} {[%emt 00:00:43]} Be7 {[%clk 00:06:08]}
{[%emt 00:00:35]} 20. Ne4 {[%clk 00:06:41]} {[%emt 00:00:03]} Na5 {[%clk
00:04:43]} {[%emt 00:01:30]} 21. Qc2 {[%clk 00:04:02]} {[%emt 00:02:45]} Qd5
{[%clk 00:03:29]} {[%emt 00:01:19]} 22. Nc3 {[%clk 00:02:56]} {[%emt 00:01:10]}
Qh5 {[%clk 00:03:13]} {[%emt 00:00:22]} 23. e4 {[%clk 00:02:22]} {[%emt
00:00:39]} b4 {[%clk 00:02:58]} {[%emt 00:00:20]} 24. Ne2 {[%clk 00:02:18]}
{[%emt 00:00:07]} Qh6 {[%clk 00:01:50]} {[%emt 00:01:16]} 25. a4 {[%clk
00:02:06]} {[%emt 00:00:16]} g6 {[%clk 00:01:33]} {[%emt 00:00:21]} 26. Nd2
{[%clk 00:01:43]} {[%emt 00:00:28]} Ba6 {[%clk 00:01:17]} {[%emt 00:00:22]} 27.
Nc4 {[%clk 00:01:46]} {[%emt 00:00:01]} Nc6 {[%clk 00:00:33]} {[%emt 00:00:49]}
28. f4 {[%clk 00:01:42]} {[%emt 00:00:09]} Nd4 {[%clk 00:00:33]} {[%emt
00:00:05]} 29. Nxd4 {[%clk 00:01:45]} {[%emt 00:00:02]} Rxd4 {[%clk 00:00:34]}
{[%emt 00:00:04]} 30. e5 {[%clk 00:01:39]} {[%emt 00:00:11]} Rcd8 {[%clk
00:00:31]} {[%emt 00:00:08]} 31. Qe2 {[%clk 00:01:40]} {[%emt 00:00:03]} Bxc4
{[%clk 00:00:11]} {[%emt 00:00:25]} 32. Rxc4 {[%clk 00:01:36]} {[%emt
00:00:09]} Rxc4 {[%clk 00:00:13]} {[%emt 00:00:04]} 33. dxc4 {[%clk 00:01:40]}
{[%emt 00:00:01]} Qf8 {[%clk 00:00:17]} 34. Rd3 {[%clk 00:01:20]} {[%emt
00:00:25]} Rxd3 {[%clk 00:00:12]} {[%emt 00:00:09]} 35. Qxd3 {[%clk 00:01:23]}
{[%emt 00:00:02]} Qd8 {[%clk 00:00:17]} 36. Qxd8+ {[%clk 00:01:25]} {[%emt
00:00:04]} Bxd8 {[%clk 00:00:21]} {[%emt 00:00:01]} 37. Kf2 {[%clk 00:01:26]}
{[%emt 00:00:04]} f6 {[%clk 00:00:18]} {[%emt 00:00:08]} 38. exf6 {[%clk
00:01:28]} {[%emt 00:00:02]} Bxf6 {[%clk 00:00:22]} 39. Kf3 {[%clk 00:01:31]}
{[%emt 00:00:02]} Kf7 {[%clk 00:00:24]} {[%emt 00:00:03]} 40. Ke3 {[%clk
00:01:32]} {[%emt 00:00:04]} Bd4+ {[%clk 00:00:28]} {[%emt 00:00:01]} 41. Ke4
{[%clk 00:01:35]} {[%emt 00:00:02]} Bf2 {[%clk 00:00:29]} {[%emt 00:00:04]} 42.
Kf3 {[%clk 00:01:39]} {[%emt 00:00:01]} Be1 {[%clk 00:00:33]} {[%emt 00:00:02]}
43. Bf1 {[%clk 00:01:32]} {[%emt 00:00:11]} Kf6 {[%clk 00:00:35]} {[%emt
00:00:03]} 44. Bd3 {[%clk 00:01:23]} {[%emt 00:00:14]} e5 {[%clk 00:00:27]}
{[%emt 00:00:14]} 45. h5 {[%clk 00:01:16]} {[%emt 00:00:12]} gxh5 {[%clk
00:00:15]} {[%emt 00:00:17]} 46. Bxh7 {[%clk 00:01:16]} {[%emt 00:00:04]} h4
{[%clk 00:00:13]} {[%emt 00:00:07]} 47. gxh4 {[%clk 00:01:17]} {[%emt
00:00:04]} Bxh4 {[%clk 00:00:15]} {[%emt 00:00:03]} 48. Ke4 {[%clk 00:01:19]}
{[%emt 00:00:04]} exf4 {[%clk 00:00:18]} {[%emt 00:00:02]} 49. Kxf4 {[%clk
00:01:22]} {[%emt 00:00:01]} Ke5+ {[%clk 00:10:05]} {[%emt 00:00:04]} 50. Ke4+
1/2-1/2

[Event "Pervenstvo PFO 2023_Y19_Rapid"]
[Site "Samara region, Russia"]
[Date "2023.11.11"]
[Round "5.2"]
[White "Berezin, Zachar"]
[Black "Konstantinov, Nikita"]
[Result "0-1"]
[TimeControl "10:5"]
[WhiteFideId "44139322"]
[BlackFideId "44165250"]
[WhiteElo "1658"]
[BlackElo "2074"]

1. d4 {[%clk 00:10:10]} {[%emt 00:03:31]} d5 {[%clk 00:10:08]} {[%emt
00:00:02]} 2. Nc3 {[%clk 00:10:14]} Nf6 {[%clk 00:10:12]} {[%emt 00:00:02]} 3.
Bf4 {[%clk 00:10:16]} {[%emt 00:00:02]} e6 {[%clk 00:10:16]} {[%emt 00:00:02]}
4. e3 {[%clk 00:10:20]} {[%emt 00:00:01]} Bd6 {[%clk 00:10:20]} 5. Nf3 {[%clk
00:10:24]} {[%emt 00:00:01]} O-O {[%clk 00:10:22]} {[%emt 00:00:03]} 6. Ne5
{[%clk 00:10:24]} {[%emt 00:00:04]} c5 {[%clk 00:10:01]} {[%emt 00:00:26]} 7.
Nb5 {[%clk 00:09:49]} {[%emt 00:00:41]} Be7 {[%clk 00:09:55]} {[%emt 00:00:11]}
8. g4 {[%clk 00:09:48]} {[%emt 00:00:05]} a6 {[%clk 00:09:25]} {[%emt
00:00:36]} 9. Nc3 {[%clk 00:09:52]} {[%emt 00:00:01]} Nc6 {[%clk 00:09:25]}
{[%emt 00:00:05]} 10. g5 {[%clk 00:09:15]} {[%emt 00:00:41]} Nd7 {[%clk
00:09:17]} {[%emt 00:00:14]} 11. h4 {[%clk 00:09:04]} {[%emt 00:00:16]} cxd4
{[%clk 00:08:47]} {[%emt 00:00:35]} 12. Nxc6 {[%clk 00:07:28]} {[%emt
00:01:41]} bxc6 {[%clk 00:08:51]} 13. exd4 {[%clk 00:07:31]} {[%emt 00:00:02]}
c5 {[%clk 00:08:37]} {[%emt 00:00:19]} 14. dxc5 {[%clk 00:04:35]} {[%emt
00:03:01]} Bxc5 {[%clk 00:08:38]} {[%emt 00:00:04]} 15. Bg2 {[%clk 00:04:25]}
{[%emt 00:00:15]} Qb6 {[%clk 00:06:56]} {[%emt 00:01:46]} 16. Qd2 {[%clk
00:03:19]} {[%emt 00:01:12]} Bb7 {[%clk 00:05:31]} {[%emt 00:01:31]} 17. O-O
{[%clk 00:02:08]} {[%emt 00:01:15]} Bb4 {[%clk 00:05:08]} {[%emt 00:00:28]} 18.
a3 {[%clk 00:01:47]} {[%emt 00:00:26]} Bd6 {[%clk 00:05:01]} {[%emt 00:00:10]}
19. Bxd6 {[%clk 00:01:30]} {[%emt 00:00:24]} Qxd6 {[%clk 00:05:05]} {[%emt
00:00:01]} 20. Ne4 {[%clk 00:01:34]} Qc7 {[%clk 00:04:51]} {[%emt 00:00:19]} 21.
Ng3 {[%clk 00:01:37]} {[%emt 00:00:02]} Ne5 {[%clk 00:04:45]} {[%emt 00:00:11]}
22. Qf4 {[%clk 00:01:32]} {[%emt 00:00:09]} Rac8 {[%clk 00:04:39]} {[%emt
00:00:12]} 23. c3 {[%clk 00:01:28]} {[%emt 00:00:10]} Rfd8 {[%clk 00:03:29]}
{[%emt 00:01:14]} 24. h5 {[%clk 00:01:26]} {[%emt 00:00:07]} Nd3 {[%clk
00:03:11]} {[%emt 00:00:22]} 25. Qd2 {[%clk 00:01:20]} {[%emt 00:00:12]} Nf4
{[%clk 00:03:12]} {[%emt 00:00:04]} 26. Bh1 {[%clk 00:01:14]} {[%emt 00:00:11]}
Qe5 {[%clk 00:03:01]} {[%emt 00:00:16]} 27. g6 {[%clk 00:00:56]} {[%emt
00:00:23]} hxg6 {[%clk 00:02:57]} {[%emt 00:00:08]} 28. hxg6 {[%clk 00:01:00]}
{[%emt 00:00:02]} Nxg6 {[%clk 00:03:00]} {[%emt 00:00:02]} 29. f4 {[%clk
00:00:49]} {[%emt 00:00:15]} Qd6 {[%clk 00:02:40]} {[%emt 00:00:25]} 30. Qh2
{[%clk 00:00:10]} {[%emt 00:00:44]} Nxf4 {[%clk 00:02:18]} {[%emt 00:00:28]} 31.
Rae1 {[%clk 00:00:10]} {[%emt 00:00:05]} Qb6+ {[%clk 00:02:00]} {[%emt
00:00:23]} 32. Qf2 {[%clk 00:00:11]} {[%emt 00:00:04]} Nh3+ {[%clk 00:02:04]}
{[%emt 00:00:01]} 0-1

[Event "Pervenstvo PFO 2023_Y19_Rapid"]
[Site "Samara region, Russia"]
[Date "2023.11.11"]
[Round "5.3"]
[White "Galyaviev, Samat"]
[Black "Kunakkuzin, Rinat"]
[Result "1-0"]
[TimeControl "10:5"]
[WhiteFideId "44168470"]
[BlackFideId "54126584"]
[WhiteElo "2030"]
[BlackElo "1925"]

1. d4 {[%clk 00:10:09]} {[%emt 00:00:01]} d5 {[%clk 00:10:06]} {[%emt
00:00:04]} 2. Nf3 {[%clk 00:10:13]} {[%emt 00:00:01]} Nf6 {[%clk 00:10:10]}
{[%emt 00:00:01]} 3. Bf4 {[%clk 00:10:17]} e6 {[%clk 00:10:09]} {[%emt
00:00:07]} 4. e3 {[%clk 00:10:21]} Be7 {[%clk 00:10:12]} 5. Nbd2 {[%clk
00:10:24]} {[%emt 00:00:02]} c5 {[%clk 00:10:12]} {[%emt 00:00:05]} 6. c3
{[%clk 00:10:27]} {[%emt 00:00:02]} Nc6 {[%clk 00:10:16]} {[%emt 00:00:01]} 7.
Bd3 {[%clk 00:10:30]} {[%emt 00:00:02]} Nh5 {[%clk 00:10:04]} {[%emt 00:00:17]}
8. Be5 {[%clk 00:10:34]} {[%emt 00:00:01]} Nxe5 {[%clk 00:09:51]} {[%emt
00:00:18]} 9. dxe5 {[%clk 00:10:38]} {[%emt 00:00:02]} g6 {[%clk 00:09:50]}
{[%emt 00:00:04]} 10. O-O {[%clk 00:10:12]} {[%emt 00:00:34]} Ng7 {[%clk
00:09:41]} {[%emt 00:00:13]} 11. e4 {[%clk 00:10:15]} {[%emt 00:00:02]} O-O
{[%clk 00:09:22]} {[%emt 00:00:25]} 12. g4 {[%clk 00:10:01]} {[%emt 00:00:18]}
b5 {[%clk 00:08:42]} {[%emt 00:00:45]} 13. Qe2 {[%clk 00:09:48]} {[%emt
00:00:19]} c4 {[%clk 00:08:35]} {[%emt 00:00:12]} 14. Bc2 {[%clk 00:09:51]}
{[%emt 00:00:01]} Bb7 {[%clk 00:08:39]} {[%emt 00:00:02]} 15. Nd4 {[%clk
00:09:47]} {[%emt 00:00:09]} b4 {[%clk 00:08:36]} {[%emt 00:00:08]} 16. f4
{[%clk 00:09:33]} {[%emt 00:00:19]} Qa5 {[%clk 00:08:28]} {[%emt 00:00:13]} 17.
Rf3 {[%clk 00:09:15]} {[%emt 00:00:24]} bxc3 {[%clk 00:08:06]} {[%emt
00:00:27]} 18. bxc3 {[%clk 00:09:18]} {[%emt 00:00:01]} Rab8 {[%clk 00:06:40]}
{[%emt 00:01:31]} 19. Raf1 {[%clk 00:06:16]} {[%emt 00:03:07]} dxe4 {[%clk
00:06:24]} {[%emt 00:00:21]} 20. Bxe4 {[%clk 00:06:13]} {[%emt 00:00:08]} Qxa2
{[%clk 00:06:15]} {[%emt 00:00:14]} 21. Qe3 {[%clk 00:06:00]} {[%emt 00:00:18]}
Bxe4 {[%clk 00:06:05]} {[%emt 00:00:16]} 22. Nxe4 {[%clk 00:05:58]} {[%emt
00:00:07]} Rb2 {[%clk 00:06:06]} {[%emt 00:00:03]} 23. R1f2 {[%clk 00:05:23]}
{[%emt 00:00:40]} Rfb8 {[%clk 00:05:49]} {[%emt 00:00:22]} 24. Nc6 {[%clk
00:04:57]} {[%emt 00:00:31]} R8b7 {[%clk 00:04:07]} {[%emt 00:01:48]} 25. Nxe7+
{[%clk 00:04:29]} {[%emt 00:00:33]} Rxe7 {[%clk 00:04:09]} {[%emt 00:00:02]} 26.
Nf6+ {[%clk 00:04:28]} {[%emt 00:00:06]} Kf8 {[%clk 00:02:25]} {[%emt
00:01:49]} 27. Nxh7+ {[%clk 00:04:07]} {[%emt 00:00:26]} Kg8 {[%clk 00:02:20]}
{[%emt 00:00:10]} 28. Nf6+ {[%clk 00:04:11]} {[%emt 00:00:02]} Kf8 {[%clk
00:02:24]} 29. Rh3 {[%clk 00:03:08]} {[%emt 00:01:08]} Rc7 {[%clk 00:01:36]}
{[%emt 00:00:53]} 30. Rh8+ {[%clk 00:03:07]} {[%emt 00:00:06]} Ke7 {[%clk
00:01:40]} {[%emt 00:00:02]} 31. Qd4 {[%clk 00:02:59]} {[%emt 00:00:12]} Qb1+
{[%clk 00:00:34]} {[%emt 00:01:11]} 32. Rf1 {[%clk 00:02:55]} {[%emt 00:00:09]}
Qxf1+ {[%clk 00:00:15]} {[%emt 00:00:24]} 33. Kxf1 {[%clk 00:02:53]} {[%emt
00:00:07]} Rb1+ {[%clk 00:00:11]} {[%emt 00:00:09]} 34. Kf2 {[%clk 00:02:45]}
{[%emt 00:00:14]} Rb2+ {[%clk 00:00:11]} {[%emt 00:00:04]} 35. Kf3 {[%clk
00:02:48]} {[%emt 00:00:02]} 1-0

[Event "Pervenstvo PFO 2023_Y19_Rapid"]
[Site "Samara region, Russia"]
[Date "2023.11.11"]
[Round "5.4"]
[White "Azizyan, Levon"]
[Black "Babkov, Timofey"]
[Result "1-0"]
[TimeControl "10:5"]
[WhiteFideId "44151888"]
[BlackFideId "54135931"]
[WhiteElo "1940"]
[BlackElo "1855"]

1. e4 {[%clk 00:10:07]} {[%emt 00:00:02]} Nc6 {[%clk 00:10:08]} {[%emt
00:00:03]} 2. Nf3 {[%clk 00:10:09]} {[%emt 00:00:03]} d5 {[%clk 00:10:12]}
{[%emt 00:00:02]} 3. exd5 {[%clk 00:10:12]} Qxd5 {[%clk 00:10:16]} 4. Nc3
{[%clk 00:10:16]} {[%emt 00:00:01]} Qd6 {[%clk 00:10:20]} 5. h3 {[%clk
00:09:33]} {[%emt 00:00:50]} e5 {[%clk 00:10:11]} {[%emt 00:00:14]} 6. Bb5
{[%clk 00:09:25]} {[%emt 00:00:13]} a6 {[%clk 00:08:02]} {[%emt 00:02:14]} 7.
Bxc6+ {[%clk 00:09:15]} {[%emt 00:00:14]} Qxc6 {[%clk 00:08:00]} {[%emt
00:00:07]} 8. Qe2 {[%clk 00:09:14]} {[%emt 00:00:06]} f6 {[%clk 00:06:55]}
{[%emt 00:01:10]} 9. d4 {[%clk 00:08:39]} {[%emt 00:00:40]} Bb4 {[%clk
00:06:59]} 10. Bd2 {[%clk 00:08:32]} {[%emt 00:00:12]} Bf5 {[%clk 00:07:03]} 11.
dxe5 {[%clk 00:08:06]} {[%emt 00:00:31]} O-O-O {[%clk 00:07:07]} {[%emt
00:00:02]} 12. O-O-O {[%clk 00:08:03]} {[%emt 00:00:07]} Nh6 {[%clk 00:05:30]}
{[%emt 00:01:42]} 13. a3 {[%clk 00:06:00]} {[%emt 00:02:09]} Bxc3 {[%emt
00:02:59]} 14. Bxc3 fxe5 {[%clk 00:02:41]} {[%emt 00:00:01]} 15. Qxe5 {[%clk
00:05:41]} {[%emt 00:00:27]} Qa4 {[%clk 00:02:06]} {[%emt 00:00:40]} 16. Qe2
{[%clk 00:05:18]} {[%emt 00:00:27]} Rde8 {[%clk 00:01:34]} {[%emt 00:00:37]} 17.
Qd2 {[%clk 00:05:04]} {[%emt 00:00:18]} Rd8 {[%clk 00:01:39]} {[%emt 00:00:01]}
18. Bd4 {[%clk 00:02:36]} {[%emt 00:02:32]} Rd6 {[%clk 00:00:40]} {[%emt
00:01:04]} 19. Rhe1 {[%clk 00:01:14]} {[%emt 00:01:27]} Rhd8 {[%clk 00:00:44]}
20. Re3 {[%clk 00:00:36]} {[%emt 00:00:43]} Rxd4 {[%clk 00:00:28]} {[%emt
00:00:21]} 21. Nxd4 {[%clk 00:00:40]} Rxd4 {[%clk 00:00:32]} 22. Re8+ {[%clk
00:00:44]} {[%emt 00:00:01]} Kd7 {[%clk 00:00:09]} {[%emt 00:00:29]} 23. Re4
{[%clk 00:00:29]} {[%emt 00:00:19]} Bxe4 {[%clk 00:10:05]} {[%emt 00:00:12]} 24.
Qxd4+ 1-0

[Event "Pervenstvo PFO 2023_Y19_Rapid"]
[Site "Samara region, Russia"]
[Date "2023.11.11"]
[Round "5.5"]
[White "Ivanov, Matvei"]
[Black "Kurulev, Egor"]
[Result "1-0"]
[TimeControl "10:5"]
[WhiteFideId "54131987"]
[BlackFideId "34187097"]
[WhiteElo "1918"]
[BlackElo "1332"]

1. Nf3 {[%clk 00:10:10]} d5 {[%clk 00:10:08]} {[%emt 00:00:03]} 2. g3 {[%clk
00:10:14]} Nf6 {[%clk 00:10:11]} {[%emt 00:00:02]} 3. Bg2 {[%clk 00:10:19]} c5
{[%clk 00:10:14]} {[%emt 00:00:02]} 4. O-O {[%clk 00:10:18]} {[%emt 00:00:06]}
g6 {[%clk 00:10:17]} {[%emt 00:00:02]} 5. c3 {[%clk 00:10:14]} {[%emt
00:00:09]} Bg7 {[%clk 00:10:20]} {[%emt 00:00:02]} 6. d4 {[%clk 00:10:19]} cxd4
{[%clk 00:10:17]} {[%emt 00:00:08]} 7. cxd4 {[%clk 00:10:23]} O-O {[%clk
00:10:19]} {[%emt 00:00:03]} 8. Ne5 {[%clk 00:10:21]} {[%emt 00:00:07]} Bf5
{[%clk 00:10:01]} {[%emt 00:00:23]} 9. Nc3 {[%clk 00:09:50]} {[%emt 00:00:36]}
Ne4 {[%clk 00:09:35]} {[%emt 00:00:32]} 10. Qb3 {[%clk 00:09:18]} {[%emt
00:00:36]} Nc6 {[%clk 00:09:19]} {[%emt 00:00:21]} 11. Nxc6 {[%clk 00:07:37]}
{[%emt 00:01:47]} bxc6 {[%clk 00:09:19]} {[%emt 00:00:05]} 12. Nxe4 {[%clk
00:07:22]} {[%emt 00:00:20]} Bxe4 {[%clk 00:09:11]} {[%emt 00:00:13]} 13. Bxe4
{[%clk 00:07:12]} {[%emt 00:00:14]} dxe4 {[%clk 00:09:14]} {[%emt 00:00:02]} 14.
Rd1 {[%clk 00:07:07]} {[%emt 00:00:09]} Qd5 {[%clk 00:09:07]} {[%emt 00:00:13]}
15. Qa4 {[%clk 00:05:50]} {[%emt 00:01:22]} Rfd8 {[%clk 00:08:43]} {[%emt
00:00:30]} 16. Bf4 {[%clk 00:04:34]} {[%emt 00:01:22]} g5 {[%clk 00:08:25]}
{[%emt 00:00:22]} 17. Bc7 {[%clk 00:04:21]} {[%emt 00:00:18]} Rd7 {[%clk
00:08:15]} {[%emt 00:00:15]} 18. Ba5 {[%clk 00:04:12]} {[%emt 00:00:14]} Rb8
{[%clk 00:07:45]} {[%emt 00:00:36]} 19. b4 {[%clk 00:02:14]} {[%emt 00:02:03]}
Rb5 {[%clk 00:04:40]} {[%emt 00:03:10]} 20. Rac1 {[%clk 00:01:40]} {[%emt
00:00:38]} e3 {[%clk 00:03:52]} {[%emt 00:00:54]} 21. fxe3 {[%clk 00:01:16]}
{[%emt 00:00:28]} g4 {[%clk 00:03:37]} {[%emt 00:00:20]} 22. Qb3 {[%clk
00:00:40]} {[%emt 00:00:42]} Qe4 {[%clk 00:02:54]} {[%emt 00:00:47]} 23. Qd3
{[%clk 00:00:32]} {[%emt 00:00:13]} Qe6 {[%clk 00:02:36]} {[%emt 00:00:23]} 24.
Rc4 {[%clk 00:00:10]} {[%emt 00:00:27]} Bh6 {[%clk 00:02:35]} {[%emt 00:00:06]}
25. e4 {[%clk 00:00:10]} {[%emt 00:00:05]} f5 {[%clk 00:02:23]} {[%emt
00:00:17]} 26. d5 {[%clk 00:00:09]} {[%emt 00:00:06]} cxd5 {[%clk 00:02:03]}
{[%emt 00:00:25]} 27. Rc8+ {[%clk 00:00:11]} {[%emt 00:00:03]} Kf7 {[%clk
00:02:01]} {[%emt 00:00:08]} 28. exf5 {[%clk 00:00:12]} {[%emt 00:00:05]} Qa6
{[%clk 00:01:33]} {[%emt 00:00:32]} 29. f6 {[%clk 00:00:12]} {[%emt 00:00:05]}
Be3+ {[%clk 00:01:22]} {[%emt 00:00:16]} 30. Kg2 {[%clk 00:00:10]} {[%emt
00:00:07]} Qxc8 {[%clk 00:01:18]} {[%emt 00:00:09]} 31. Qxb5 {[%clk 00:00:14]}
exf6 {[%clk 00:01:18]} {[%emt 00:00:05]} 32. Rxd5 {[%clk 00:00:12]} {[%emt
00:00:08]} Rxd5 {[%clk 00:00:54]} {[%emt 00:00:28]} 33. Qxd5+ {[%clk 00:00:16]}
Qe6 {[%clk 00:00:57]} {[%emt 00:00:02]} 34. Qxe6+ {[%clk 00:00:14]} {[%emt
00:00:07]} Kxe6 {[%clk 00:01:00]} {[%emt 00:00:01]} 35. Bd8 {[%clk 00:00:15]}
{[%emt 00:00:04]} f5 {[%clk 00:00:49]} {[%emt 00:00:17]} 36. Bc7 {[%clk
00:00:19]} Bd2 {[%clk 00:00:41]} {[%emt 00:00:12]} 37. b5 {[%clk 00:00:22]}
{[%emt 00:00:03]} Kd5 {[%clk 00:00:34]} {[%emt 00:00:13]} 38. Bf4 {[%clk
00:00:26]} Ba5 {[%clk 00:00:18]} {[%emt 00:00:21]} 39. a4 {[%clk 00:00:18]}
{[%emt 00:00:13]} Kc4 {[%clk 00:00:15]} {[%emt 00:00:08]} 40. Kf2 {[%clk
00:00:08]} {[%emt 00:00:14]} Kb4 {[%clk 00:00:11]} {[%emt 00:00:09]} 41. Be3
{[%clk 00:00:12]} Kxa4 {[%clk 00:00:15]} {[%emt 00:00:02]} 42. Bxa7 {[%clk
00:00:16]} {[%emt 00:00:02]} Kxb5 {[%clk 00:00:17]} {[%emt 00:00:03]} 43. Ke3
{[%clk 00:00:17]} {[%emt 00:00:03]} Bc7 {[%clk 00:00:20]} {[%emt 00:00:03]} 44.
Kd4 {[%clk 00:00:14]} {[%emt 00:00:08]} Kc6 {[%clk 00:00:23]} {[%emt 00:00:02]}
45. e4 {[%clk 00:00:15]} {[%emt 00:00:04]} f4 {[%clk 00:00:20]} {[%emt
00:00:08]} 46. e5 {[%clk 00:00:11]} {[%emt 00:00:09]} f3 {[%clk 00:00:11]}
{[%emt 00:00:14]} 47. Ke4 {[%clk 00:00:07]} {[%emt 00:00:09]} Bb6 {[%clk
00:00:10]} {[%emt 00:00:07]} 48. Bxb6 Kxb6 {[%clk 00:00:14]} 49. Ke3 {[%clk
00:00:10]} {[%emt 00:00:02]} 1-0

[Event "Pervenstvo PFO 2023_Y19_Rapid"]
[Site "Samara region, Russia"]
[Date "2023.11.11"]
[Round "5.6"]
[White "Mochalov, Dmitriy"]
[Black "Panteleev, Zakhar"]
[Result "1-0"]
[TimeControl "10:5"]
[WhiteFideId "44179634"]
[BlackFideId "34483977"]
[WhiteElo "2194"]
[BlackElo "1556"]

1. e4 {[%clk 00:10:06]} {[%emt 00:00:03]} c5 {[%clk 00:10:07]} {[%emt
00:00:04]} 2. Nf3 {[%clk 00:10:10]} Nc6 {[%clk 00:10:11]} {[%emt 00:00:01]} 3.
Bb5 {[%clk 00:10:13]} {[%emt 00:00:02]} g6 {[%clk 00:10:12]} {[%emt 00:00:04]}
4. O-O {[%clk 00:10:15]} {[%emt 00:00:02]} Bg7 {[%clk 00:10:14]} {[%emt
00:00:03]} 5. Re1 {[%clk 00:10:19]} Nf6 {[%clk 00:10:16]} {[%emt 00:00:04]} 6.
c3 {[%clk 00:10:23]} O-O {[%clk 00:10:16]} {[%emt 00:00:05]} 7. d4 {[%clk
00:10:25]} {[%emt 00:00:03]} d5 {[%clk 00:10:19]} {[%emt 00:00:02]} 8. exd5
{[%clk 00:10:21]} {[%emt 00:00:09]} Qxd5 {[%clk 00:09:58]} {[%emt 00:00:26]} 9.
c4 {[%clk 00:10:22]} {[%emt 00:00:05]} Qd6 {[%clk 00:07:39]} {[%emt 00:02:23]}
10. d5 {[%clk 00:10:17]} {[%emt 00:00:10]} Nb4 {[%clk 00:05:54]} {[%emt
00:01:51]} 11. a3 {[%clk 00:10:12]} {[%emt 00:00:10]} Na6 {[%clk 00:05:57]}
{[%emt 00:00:01]} 12. Nc3 {[%clk 00:10:13]} {[%emt 00:00:04]} Nc7 {[%clk
00:05:53]} {[%emt 00:00:09]} 13. Ba4 {[%clk 00:10:13]} {[%emt 00:00:06]} e6
{[%clk 00:05:40]} {[%emt 00:00:17]} 14. dxe6 {[%clk 00:10:15]} {[%emt
00:00:03]} Qxd1 {[%clk 00:05:28]} {[%emt 00:00:17]} 15. exf7+ {[%clk 00:10:18]}
{[%emt 00:00:02]} Rxf7 {[%clk 00:05:28]} {[%emt 00:00:05]} 16. Bxd1 {[%clk
00:10:20]} {[%emt 00:00:03]} Bf5 {[%clk 00:04:52]} {[%emt 00:00:41]} 17. Be3
{[%clk 00:10:13]} {[%emt 00:00:12]} Ne6 {[%clk 00:04:37]} {[%emt 00:00:20]} 18.
Ng5 {[%clk 00:10:15]} {[%emt 00:00:03]} Nxg5 {[%clk 00:04:14]} {[%emt
00:00:27]} 19. Bxg5 {[%clk 00:10:18]} {[%emt 00:00:02]} Bd3 {[%clk 00:03:30]}
{[%emt 00:00:50]} 20. Be2 {[%clk 00:10:19]} {[%emt 00:00:04]} Ne4 {[%clk
00:02:48]} {[%emt 00:00:47]} 21. Bxd3 {[%clk 00:10:01]} {[%emt 00:00:23]} Nxg5
{[%clk 00:02:50]} {[%emt 00:00:03]} 22. h4 {[%clk 00:10:04]} {[%emt 00:00:01]}
Rd8 {[%clk 00:02:25]} {[%emt 00:00:30]} 23. Nd5 {[%clk 00:10:08]} {[%emt
00:00:01]} Bd4 {[%clk 00:01:33]} {[%emt 00:00:57]} 24. Re2 {[%clk 00:10:07]}
{[%emt 00:00:07]} Ne6 {[%clk 00:00:51]} {[%emt 00:00:47]} 25. Rxe6 {[%clk
00:10:08]} {[%emt 00:00:04]} Rxf2 {[%clk 00:00:52]} {[%emt 00:00:03]} 26. Kh2
{[%clk 00:10:07]} {[%emt 00:00:06]} Rdf8 {[%clk 00:00:42]} {[%emt 00:00:16]} 27.
Rae1 {[%clk 00:10:04]} {[%emt 00:00:07]} Kg7 {[%clk 00:00:35]} {[%emt
00:00:13]} 28. R6e2 {[%clk 00:10:04]} {[%emt 00:00:05]} Bxb2 {[%clk 00:00:29]}
{[%emt 00:00:11]} 29. Rxf2 {[%clk 00:10:01]} {[%emt 00:00:08]} Rxf2 {[%clk
00:00:33]} {[%emt 00:00:01]} 30. Re7+ {[%clk 00:10:05]} Kh6 {[%clk 00:00:37]}
31. Rxb7 {[%clk 00:10:03]} {[%emt 00:00:08]} Be5+ {[%clk 00:00:31]} {[%emt
00:00:10]} 32. Kh3 {[%clk 00:10:01]} {[%emt 00:00:07]} Rd2 {[%clk 00:00:28]}
{[%emt 00:00:08]} 33. Rb3 {[%clk 00:09:41]} {[%emt 00:00:25]} Rd1 {[%clk
00:00:22]} {[%emt 00:00:11]} 34. Kg4 {[%clk 00:09:38]} {[%emt 00:00:08]} Kg7
{[%clk 00:00:19]} {[%emt 00:00:08]} 35. Kf3 {[%clk 00:09:37]} {[%emt 00:00:07]}
Bd4 {[%clk 00:00:17]} {[%emt 00:00:08]} 36. Nf4 {[%clk 00:09:35]} {[%emt
00:00:07]} Kh6 {[%clk 00:00:13]} {[%emt 00:00:09]} 37. g4 {[%clk 00:09:36]}
{[%emt 00:00:04]} g5 {[%clk 00:00:12]} {[%emt 00:00:06]} 38. hxg5+ {[%clk
00:09:38]} {[%emt 00:00:02]} Kxg5 {[%clk 00:00:15]} {[%emt 00:00:03]} 39. Ne6+
{[%clk 00:09:42]} 1-0